bitfinex/quotes_BTCUSD_20251027
["timestamp","ask_amount","ask_price","bid_price","bid_amount"]
[1761529511381,0.17362618,115190.0,115180.0,0.15296]
[1761529511796,0.17362618,115190.0,115170.0,0.73032384]
[1761529512029,0.17362618,115190.0,115170.0,0.82014285]
[1761529512183,0.17362618,115190.0,115170.0,0.50199151]
[1761529512393,0.17362618,115190.0,115180.0,0.17364125]
[1761529513146,0.17662618,115190.0,115170.0,0.82014285]
[1761529514224,0.17662618,115190.0,115170.0,0.50199151]
[1761529514350,0.17662618,115190.0,115170.0,0.82014285]
[1761529514553,0.17662618,115190.0,115180.0,0.17364125]
[1761529514837,0.17362618,115190.0,115180.0,0.17364125]
[1761529515033,0.18229166,115200.0,115180.0,0.50915671]
[1761529515291,0.33525166,115200.0,115180.0,0.49179259]
[1761529515464,0.33525166,115200.0,115180.0,0.53809002]
[1761529515670,0.18307999,115210.0,115190.0,0.75191914]
[1761529515877,0.18307999,115210.0,115200.0,0.17361111]
[1761529516078,0.18307999,115210.0,115200.0,0.49176245]
[1761529516276,0.00080415,115210.0,115200.0,0.49176245]
[1761529516812,0.00080415,115210.0,115200.0,0.17361111]
[1761529517462,0.00180415,115210.0,115200.0,0.17361111]
[1761529517566,0.00180415,115210.0,115200.0,0.19965798]
[1761529517787,0.17540019,115210.0,115200.0,0.51780932]
[1761529518406,0.18440019,115210.0,115200.0,0.51780932]
[1761529518612,0.18440019,115210.0,115200.0,0.19965798]
[1761529519137,0.01080415,115210.0,115200.0,0.19965798]
[1761529519801,0.01080415,115210.0,115200.0,0.51780932]
[1761529521464,0.01080415,115210.0,115200.0,0.19965798]
[1761529521664,0.01080415,115210.0,115200.0,0.51780932]
[1761529522975,0.01080415,115210.0,115200.0,0.60762833]
[1761529523608,0.01080415,115210.0,115200.0,0.65392576]
[1761529523843,0.01080415,115210.0,115200.0,0.99392576]
[1761529524047,0.00980415,115210.0,115200.0,1.3120771]
[1761529524251,0.00080415,115210.0,115200.0,1.3120771]
[1761529524682,0.00380415,115210.0,115200.0,1.26577967]
[1761529525342,0.00380415,115210.0,115200.0,1.31209103]
[1761529525549,0.00380415,115210.0,115200.0,1.26577967]
[1761529526306,0.00380415,115210.0,115200.0,1.3120748]
[1761529526542,0.00380415,115210.0,115200.0,1.26577967]
[1761529526838,0.00380415,115210.0,115200.0,1.41869967]
[1761529527060,0.00380415,115210.0,115200.0,1.53203922]
[1761529527061,1e-08,115210.0,115200.0,1.53203922]
[1761529527257,0.00036352,115220.0,115210.0,0.51359604]
[1761529527400,0.00036352,115220.0,115210.0,0.9833532]
[1761529528267,0.00036352,115220.0,115210.0,0.62795091]
[1761529528487,0.00036352,115220.0,115210.0,0.63723219]
[1761529528699,0.00036352,115220.0,115210.0,1.13015219]
[1761529528898,0.00036352,115220.0,115210.0,1.13615219]
[1761529529304,0.00036352,115220.0,115210.0,1.13015219]
[1761529529725,0.00036352,115220.0,115210.0,0.97723219]
[1761529529838,0.00036352,115220.0,115210.0,0.81200085]
[1761529530046,0.00036352,115220.0,115210.0,1.13015219]
[1761529530466,0.00036352,115220.0,115210.0,1.13115219]
[1761529530757,0.00036352,115220.0,115210.0,1.13015219]
[1761529531186,0.00236352,115220.0,115210.0,1.13015219]
[1761529532886,0.17594449,115220.0,115210.0,0.41644085]
[1761529533738,0.17594449,115220.0,115210.0,0.77428873]
[1761529533979,0.00236352,115220.0,115210.0,0.77428873]
[1761529534323,0.00236352,115220.0,115210.0,0.8003319]
[1761529535651,0.17594449,115220.0,115210.0,0.8003319]
[1761529535884,0.17594449,115220.0,115210.0,0.44248402]
[1761529536083,0.17594449,115220.0,115210.0,0.8003319]
[1761529539785,0.17594449,115220.0,115210.0,0.17906897]
[1761529540100,0.17594449,115220.0,115210.0,0.35266501]
[1761529542113,0.00236352,115220.0,115210.0,0.71051289]
[1761529542295,0.17594449,115220.0,115210.0,0.71051289]
[1761529542675,0.17594449,115220.0,115210.0,0.35266501]
[1761529543086,0.17594449,115220.0,115210.0,0.71051289]
[1761529543289,0.17594449,115220.0,115210.0,0.17906897]
[1761529543478,0.17594449,115220.0,115210.0,0.02618897]
[1761529543679,0.17594449,115220.0,115210.0,0.71051289]
[1761529544079,0.00236352,115220.0,115210.0,0.71051289]
[1761529544743,0.17594449,115220.0,115210.0,0.71051289]
[1761529545099,0.00236352,115220.0,115210.0,0.71051289]
[1761529545923,0.00236352,115220.0,115210.0,0.8003319]
[1761529548317,0.00236352,115220.0,115210.0,0.84657062]
[1761529548917,0.00236352,115220.0,115210.0,1.18657062]
[1761529550597,0.00236352,115220.0,115210.0,1.49817978]
[1761529550980,0.00236352,115220.0,115210.0,1.55982079]
[1761529551378,0.00036352,115220.0,115210.0,1.20197291]
[1761529551598,0.00036352,115220.0,115210.0,1.55982079]
[1761529552725,0.00036352,115220.0,115210.0,1.56282079]
[1761529553295,0.00036352,115220.0,115210.0,1.20497291]
[1761529556163,0.00036352,115220.0,115210.0,0.84712503]
[1761529556389,0.00036352,115220.0,115210.0,1.20497291]
[1761529557202,0.00036352,115220.0,115210.0,1.26041291]
[1761529557404,0.00036352,115220.0,115210.0,1.1987719]
[1761529557560,0.00036352,115220.0,115210.0,0.9904519]
[1761529557760,0.00036352,115220.0,115210.0,1.2450331]
[1761529559635,0.00036352,115220.0,115210.0,1.1987719]
[1761529560973,0.00036352,115220.0,115210.0,1.26041291]
[1761529562261,0.00036352,115220.0,115210.0,1.1987719]
[1761529568307,0.00036352,115220.0,115210.0,1.1432919]
[1761529568512,0.00036352,115220.0,115210.0,1.1987719]
[1761529569203,0.00036352,115220.0,115210.0,1.26041291]
[1761529576499,0.00036352,115220.0,115210.0,0.90256503]
[1761529576812,0.00036352,115220.0,115210.0,1.26041291]
[1761529579354,0.00036352,115220.0,115210.0,1.1987719]
[1761529580401,0.00036352,115220.0,115210.0,0.84092402]
[1761529580605,0.00036352,115220.0,115210.0,1.1987719]
[1761529586533,0.00036352,115220.0,115210.0,0.84092402]
[1761529586734,0.00036352,115220.0,115210.0,1.1987719]
[1761529588063,0.00036352,115220.0,115210.0,1.55734308]
[1761529588260,0.00036352,115220.0,115210.0,1.63377705]
[1761529588952,0.00036352,115220.0,115210.0,1.27592917]
[1761529593933,0.00036352,115220.0,115210.0,1.23600663]
[1761529594883,0.00036352,115220.0,115210.0,1.22076721]
[1761529596919,0.00036352,115220.0,115210.0,1.15880936]
[1761529599192,0.00036352,115220.0,115210.0,1.22076135]
[1761529599438,0.00036352,115220.0,115210.0,1.15880936]
[1761529601174,0.00036352,115220.0,115210.0,1.22076936]
[1761529603916,0.00036352,115220.0,115210.0,1.06796936]
[1761529604780,0.00036352,115220.0,115210.0,1.01248936]
[1761529604982,0.00036352,115220.0,115210.0,1.22076936]
[1761529606241,0.00036352,115220.0,115210.0,1.21776936]
[1761529606856,0.00036352,115220.0,115210.0,1.13624619]
[1761529607038,0.00036352,115220.0,115210.0,1.19172619]
[1761529610157,0.00036352,115220.0,115210.0,1.12976619]
[1761529613354,0.00036352,115220.0,115210.0,1.03892619]
[1761529613563,0.00036352,115220.0,115210.0,1.19172619]
[1761529613969,0.00036352,115220.0,115210.0,1.1951981]
[1761529614191,0.00036352,115220.0,115210.0,0.87727276]
[1761529614391,0.00036352,115220.0,115210.0,1.1951981]
[1761529617531,0.00036352,115220.0,115210.0,1.0423981]
[1761529618038,0.00036352,115220.0,115210.0,1.1951981]
[1761529619846,0.00036352,115220.0,115210.0,1.1951581]
[1761529622165,0.00036352,115220.0,115210.0,1.0423981]
[1761529622819,0.00036352,115220.0,115210.0,1.1951581]
[1761529623204,0.00036352,115220.0,115210.0,0.87723276]
[1761529623441,0.00036352,115220.0,115210.0,1.1951581]
[1761529624093,0.00036352,115220.0,115210.0,1.0423981]
[1761529624670,0.00036352,115220.0,115210.0,1.1951581]
[1761529624898,0.00036352,115220.0,115210.0,1.1331981]
[1761529626946,0.00036352,115220.0,115210.0,1.21035537]
[1761529627791,0.00036352,115220.0,115210.0,1.41035537]
[1761529628875,0.00036352,115220.0,115210.0,1.21335537]
[1761529629355,0.00036352,115220.0,115210.0,0.9279581]
[1761529629572,0.00036352,115220.0,115210.0,1.1361981]
[1761529630583,0.00036352,115220.0,115210.0,0.9279581]
[1761529630786,0.00036352,115220.0,115210.0,1.1361981]
[1761529634135,0.00036352,115220.0,115210.0,1.21335537]
[1761529634550,0.00036352,115220.0,115210.0,1.1361981]
[1761529634896,0.00036352,115220.0,115210.0,1.21335537]
[1761529636629,0.00036352,115220.0,115210.0,1.1361981]
[1761529638406,0.00036352,115220.0,115210.0,1.21335537]
[1761529650847,3.601e-05,115220.0,115210.0,2.17679379]
[1761529651019,3.601e-05,115220.0,115210.0,1.99255938]
[1761529651261,3.601e-05,115220.0,115210.0,2.00493884]
[1761529651669,3.601e-05,115220.0,115210.0,1.45705904]
[1761529651851,3.601e-05,115220.0,115210.0,1.77498438]
[1761529652082,3.601e-05,115220.0,115210.0,1.88359584]
[1761529652289,3.601e-05,115220.0,115210.0,1.84053284]
[1761529655919,3.601e-05,115220.0,115210.0,2.23777224]
[1761529657491,3.601e-05,115220.0,115210.0,2.12916078]
[1761529660930,0.00139995,115230.0,115220.0,0.51358097]
[1761529661132,0.00139995,115230.0,115220.0,1.39588843]
[1761529661689,0.00139995,115230.0,115220.0,1.39935974]
[1761529663601,0.00139995,115230.0,115220.0,1.40235974]
[1761529675451,0.00139995,115230.0,115220.0,1.43854202]
[1761529676942,0.00139995,115230.0,115220.0,1.19977028]
[1761529677071,0.00139995,115230.0,115220.0,1.91493502]
[1761529678376,1e-08,115230.0,115220.0,2.27251739]
[1761529678574,0.00160022,115240.0,115230.0,1.28279419]
[1761529678881,0.00160022,115240.0,115230.0,2.51777676]
[1761529679201,0.00160022,115240.0,115230.0,2.43354476]
[1761529679412,0.00160022,115240.0,115230.0,2.43706001]
[1761529681161,0.00160022,115240.0,115230.0,2.44306001]
[1761529681980,0.00160022,115240.0,115230.0,2.44406001]
[1761529682887,0.00160022,115240.0,115230.0,2.80164238]
[1761529684249,0.00351525,115260.0,115250.0,0.17353579]
[1761529684466,0.00351525,115260.0,115250.0,2.62231055]
[1761529684716,0.00351525,115260.0,115250.0,1.03824233]
[1761529684916,0.00351525,115260.0,115250.0,1.30825173]
[1761529685091,0.00351525,115260.0,115250.0,1.23446182]
[1761529685459,0.00356385,115260.0,115250.0,1.23446182]
[1761529689884,0.00377021,115260.0,115250.0,1.23446182]
[1761529703967,0.00377021,115260.0,115250.0,1.23094657]
[1761529705425,0.00377021,115260.0,115250.0,1.38036894]
[1761529705623,0.00377021,115260.0,115250.0,1.23090657]
[1761529708743,0.00377021,115260.0,115250.0,1.17542657]
[1761529708923,0.00377021,115260.0,115250.0,1.23090657]
[1761529711587,0.00377021,115260.0,115250.0,1.17542657]
[1761529711793,0.00377021,115260.0,115250.0,1.23090657]
[1761529712050,0.00377021,115260.0,115250.0,0.8733242]
[1761529712352,0.00377021,115260.0,115250.0,0.3252042]
[1761529712353,0.36135258,115260.0,115250.0,0.3252042]
[1761529712455,0.00377021,115260.0,115250.0,0.04649528]
[1761529712636,0.17729094,115260.0,115250.0,0.04649528]
[1761529712829,0.17729094,115260.0,115240.0,0.19913528]
[1761529712830,0.17353579,115250.0,115240.0,0.19913528]
[1761529713051,0.17353579,115250.0,115240.0,0.37268613]
[1761529713237,0.17353579,115250.0,115240.0,0.04649528]
[1761529713393,0.17729094,115260.0,115240.0,0.5776285]
[1761529713617,0.17353579,115250.0,115240.0,0.40407765]
[1761529713806,0.17353579,115250.0,115240.0,0.35758237]
[1761529714208,0.17653579,115250.0,115230.0,0.73896185]
[1761529714416,0.17353579,115250.0,115230.0,0.82878086]
[1761529714655,0.17353579,115250.0,115240.0,0.17355085]
[1761529715814,0.17953579,115250.0,115240.0,0.17355085]
[1761529716435,0.18053579,115250.0,115240.0,0.17355085]
[1761529718873,0.007,115250.0,115240.0,0.17355085]
[1761529722733,0.007,115250.0,115240.0,0.59868175]
[1761529722944,0.007,115250.0,115240.0,0.58132667]
[1761529726280,0.006,115250.0,115240.0,0.58132667]
[1761529726490,0.00377021,115260.0,115250.0,0.17353579]
[1761529726680,0.00377021,115260.0,115250.0,0.66148617]
[1761529726879,0.00377021,115260.0,115250.0,0.6441326]
[1761529727082,0.00377021,115260.0,115250.0,0.73395161]
[1761529729517,0.00677021,115260.0,115250.0,0.73395161]
[1761529733671,0.00677021,115260.0,115250.0,1.07395161]
[1761529737579,0.00677021,115260.0,115250.0,1.12943161]
[1761529742564,0.00677021,115260.0,115250.0,1.32943161]
[1761529742717,0.00677021,115260.0,115250.0,1.39128101]
[1761529743319,0.00377021,115260.0,115250.0,1.39128101]
[1761529745170,0.00377021,115260.0,115250.0,1.19128101]
[1761529745773,0.00377021,115260.0,115250.0,0.98316101]
[1761529746035,0.00377021,115260.0,115250.0,1.19124101]
[1761529746264,0.00377021,115260.0,115250.0,1.12939161]
[1761529747313,0.00377021,115260.0,115250.0,1.13316182]
[1761529749236,0.00219976,115270.0,115260.0,0.91470733]
[1761529749432,0.00219976,115270.0,115260.0,1.00467214]
[1761529749864,0.00219976,115270.0,115260.0,1.01314647]
[1761529751699,0.00519976,115270.0,115260.0,1.01314647]
[1761529752106,0.00519976,115270.0,115260.0,1.07499587]
[1761529752309,0.00519976,115270.0,115260.0,1.10102101]
[1761529752509,0.00219976,115270.0,115260.0,1.10102101]
[1761529753012,0.00219976,115270.0,115260.0,1.10402101]
[1761529754365,0.00219976,115270.0,115260.0,0.7860642]
[1761529754567,0.00219976,115270.0,115260.0,1.10402101]
[1761529754804,0.00240609,115270.0,115260.0,1.10402101]
[1761529756330,1e-08,115270.0,115260.0,1.34020329]
[1761529756494,1e-08,115270.0,115260.0,2.3698337]
[1761529757085,1e-08,115270.0,115260.0,2.05187689]
[1761529757455,1e-08,115270.0,115260.0,2.3698337]
[1761529757728,1e-08,115270.0,115260.0,2.05187689]
[1761529759352,1e-08,115270.0,115260.0,2.3698337]
[1761529759535,0.00274962,115280.0,115270.0,0.25673546]
[1761529759689,0.00274962,115280.0,115270.0,1.19674512]
[1761529760151,0.00267278,115290.0,115280.0,0.51349063]
[1761529760322,0.00267278,115290.0,115280.0,1.59260257]
[1761529760733,0.00287905,115290.0,115280.0,1.59260257]
[1761529760915,0.00287905,115290.0,115280.0,1.61065312]
[1761529761515,0.00287905,115290.0,115280.0,1.41065312]
[1761529761746,0.0179296,115300.0,115290.0,0.17347558]
[1761529761938,0.0179296,115300.0,115290.0,0.75115895]
[1761529762120,0.0179296,115300.0,115290.0,0.7338114]
[1761529762518,0.0179296,115300.0,115290.0,0.751741]
[1761529763143,0.0179296,115300.0,115290.0,0.754741]
[1761529767245,0.003783,115310.0,115300.0,0.40964281]
[1761529767390,0.003783,115310.0,115300.0,0.81741863]
[1761529767599,0.003783,115310.0,115300.0,0.93379635]
[1761529767822,0.003783,115310.0,115300.0,0.61581582]
[1761529768021,0.003783,115310.0,115300.0,0.80973784]
[1761529768225,0.003783,115310.0,115300.0,0.60169784]
[1761529768422,0.0039095,115310.0,115300.0,0.80973784]
[1761529768625,0.0039095,115310.0,115300.0,0.81273784]
[1761529769405,0.0039095,115310.0,115300.0,0.89596762]
[1761529770790,0.0039095,115310.0,115300.0,0.68792762]
[1761529770938,0.0039095,115310.0,115300.0,0.36997081]
[1761529771301,0.0039095,115310.0,115300.0,0.87546613]
[1761529771654,0.0039095,115310.0,115300.0,0.66746613]
[1761529771987,0.0039095,115310.0,115300.0,0.49906932]
[1761529772341,0.0069095,115310.0,115300.0,0.49906932]
[1761529772986,0.00711572,115310.0,115300.0,0.49906932]
[1761529773186,0.00711572,115310.0,115300.0,0.81702613]
[1761529773418,0.00411572,115310.0,115300.0,0.81702613]
[1761529773951,0.01311572,115310.0,115300.0,0.81702613]
[1761529774184,0.01411572,115310.0,115300.0,0.49906932]
[1761529774591,0.00511572,115310.0,115300.0,0.49906932]
[1761529774796,0.00411572,115310.0,115300.0,0.49906932]
[1761529775068,0.00711572,115310.0,115300.0,0.49906932]
[1761529775785,0.00711572,115310.0,115300.0,0.81702613]
[1761529776579,0.00711572,115310.0,115300.0,0.49906932]
[1761529777747,0.00711572,115310.0,115300.0,0.85634251]
[1761529780886,0.17691921,115320.0,115310.0,0.24955955]
[1761529781085,0.17691921,115320.0,115310.0,0.07611406]
[1761529781285,0.17712541,115320.0,115310.0,0.07611406]
[1761529781655,0.17712541,115320.0,115310.0,0.24955955]
[1761529782082,0.17712541,115320.0,115310.0,0.07611406]
[1761529783293,0.18212541,115320.0,115310.0,0.07611406]
[1761529784282,0.5393986,115320.0,115310.0,0.07611406]
[1761529785510,0.18212541,115320.0,115310.0,0.07611406]
[1761529785713,0.5393986,115320.0,115310.0,0.07611406]
[1761529788098,0.18212541,115320.0,115310.0,0.07611406]
[1761529788818,0.00869334,115320.0,115310.0,0.24955955]
[1761529789022,0.18212379,115320.0,115310.0,0.24955955]
[1761529790804,0.10600973,115320.0,115310.0,0.17344549]
[1761529791218,0.10600973,115320.0,115300.0,0.6833334]
[1761529791416,0.10600973,115320.0,115310.0,0.17344549]
[1761529792634,0.10600973,115320.0,115300.0,0.77315241]
[1761529792635,0.10600973,115320.0,115300.0,0.41587922]
[1761529792841,0.46328292,115320.0,115310.0,0.17344549]
[1761529793484,0.46328292,115320.0,115300.0,0.41587922]
[1761529793845,0.17344549,115310.0,115300.0,0.41587922]
[1761529794448,0.53071868,115310.0,115290.0,0.18214935]
[1761529794646,0.53071868,115310.0,115290.0,0.42469486]
[1761529794872,0.53071868,115310.0,115290.0,0.78196805]
[1761529795085,0.17344549,115310.0,115290.0,0.78196805]
[1761529795448,0.17344549,115310.0,115300.0,0.17346053]
[1761529795659,0.17344549,115310.0,115300.0,0.17846053]
[1761529795853,0.17344549,115310.0,115300.0,0.17346053]
[1761529796864,0.17344549,115310.0,115300.0,0.17546053]
[1761529797293,0.47195444,115320.0,115300.0,0.17546053]
[1761529797491,0.47195444,115320.0,115300.0,0.53273372]
[1761529797492,0.17344549,115310.0,115300.0,0.53273372]
[1761529798123,0.17344549,115310.0,115300.0,0.17346053]
[1761529798530,0.17344549,115310.0,115300.0,0.17546053]
[1761529798742,0.17344549,115310.0,115300.0,0.17346053]
[1761529799151,0.11468125,115320.0,115300.0,0.62255273]
[1761529799710,0.11468125,115320.0,115310.0,0.32608549]
[1761529800372,0.11468125,115320.0,115310.0,0.15264]
[1761529801220,0.47195444,115320.0,115310.0,0.15264]
[1761529801600,0.36594471,115320.0,115310.0,0.15264]
[1761529801862,0.53940283,115320.0,115310.0,0.15264]
[1761529802165,0.53940283,115320.0,115300.0,0.08981901]
[1761529802166,0.17344549,115310.0,115300.0,0.08981901]
[1761529802363,0.53071868,115310.0,115300.0,0.17346053]
[1761529802507,0.53071868,115310.0,115290.0,0.18227585]
[1761529802715,0.53071868,115310.0,115290.0,0.42469486]
[1761529802937,0.17344549,115310.0,115290.0,0.42473486]
[1761529803107,0.17344549,115310.0,115300.0,0.17346053]
[1761529803342,0.53071868,115310.0,115290.0,0.42473486]
[1761529804546,0.17346053,115300.0,115290.0,0.41606109]
[1761529805099,0.17346053,115300.0,115290.0,0.41806109]
[1761529805701,0.17346053,115300.0,115290.0,0.41606109]
[1761529806105,0.17346053,115300.0,115290.0,0.17560208]
[1761529806494,0.53073372,115300.0,115290.0,0.0021265]
[1761529807919,0.53073372,115300.0,115290.0,0.0001265]
[1761529808327,0.53173372,115300.0,115290.0,0.0001265]
[1761529809708,0.62155273,115300.0,115290.0,0.0001265]
[1761529810134,0.53273372,115300.0,115290.0,0.0001265]
[1761529815459,0.17546053,115300.0,115290.0,0.0001265]
[1761529815664,0.53273372,115300.0,115290.0,0.0001265]
[1761529819186,0.17546053,115300.0,115290.0,0.0001265]
[1761529819399,0.53273372,115300.0,115290.0,0.0001265]
[1761529824355,0.68529372,115300.0,115290.0,0.0001265]
[1761529827918,0.32802053,115300.0,115290.0,0.17360208]
[1761529830567,0.32802053,115300.0,115290.0,0.0001265]
[1761529831185,0.32802053,115300.0,115290.0,0.17360208]
[1761529832325,0.68529372,115300.0,115290.0,0.17360208]
[1761529834076,0.32802053,115300.0,115290.0,0.17360208]
[1761529834274,0.68529372,115300.0,115290.0,0.17360208]
[1761529834893,0.32802053,115300.0,115290.0,0.0001265]
[1761529835117,0.68529372,115300.0,115290.0,0.17360208]
[1761529836127,0.68529372,115300.0,115290.0,0.0001265]
[1761529837780,0.32802053,115300.0,115290.0,0.0001265]
[1761529845410,0.17546053,115300.0,115290.0,0.17360208]
[1761529845590,0.32802053,115300.0,115290.0,0.17360208]
[1761529848221,0.32802053,115300.0,115290.0,0.0001265]
[1761529848746,0.32802053,115300.0,115290.0,0.26342109]
[1761529848747,0.002,115300.0,115290.0,0.26342109]
[1761529850829,0.17546053,115300.0,115290.0,0.26342109]
[1761529855973,0.002,115300.0,115290.0,0.26342109]
[1761529856433,0.002,115300.0,115290.0,0.58115776]
[1761529862836,0.002,115300.0,115290.0,0.92115776]
[1761529863037,0.002,115300.0,115290.0,0.95734004]
[1761529863332,0.002,115300.0,115290.0,1.24507616]
[1761529864066,0.001,115300.0,115290.0,1.24507616]
[1761529864508,0.02046149,115330.0,115320.0,0.17343045]
[1761529864755,0.02046149,115330.0,115320.0,0.75088917]
[1761529864906,0.02046149,115330.0,115320.0,0.73354613]
[1761529865120,0.02046149,115330.0,115320.0,1.42746508]
[1761529865501,0.02046149,115330.0,115320.0,0.95716841]
[1761529865703,0.02146149,115330.0,115320.0,1.1303899]
[1761529866106,0.02146149,115330.0,115320.0,1.14968762]
[1761529866264,0.02046149,115330.0,115320.0,1.1404282]
[1761529866429,0.02046149,115330.0,115320.0,1.1959082]
[1761529866631,0.02046149,115330.0,115320.0,1.1969082]
[1761529867276,0.02046149,115330.0,115320.0,1.15072762]
[1761529867764,0.02046149,115330.0,115320.0,1.15772762]
[1761529867986,0.02046149,115330.0,115320.0,1.15672762]
[1761529870205,0.02066765,115330.0,115320.0,1.14972762]
[1761529870400,0.02066765,115330.0,115320.0,1.15372762]
[1761529872829,0.02066765,115330.0,115320.0,0.83599095]
[1761529874168,0.19408306,115330.0,115320.0,0.42004946]
[1761529874890,0.19408306,115330.0,115320.0,0.24661901]
[1761529875237,0.19508306,115330.0,115320.0,0.09381901]
[1761529876254,0.19508306,115330.0,115320.0,0.08981901]
[1761529876451,0.17343045,115320.0,115310.0,0.32611903]
[1761529876650,0.17343045,115320.0,115310.0,0.41593804]
[1761529877505,0.17343045,115320.0,115310.0,0.4159445]
[1761529877888,0.17343045,115320.0,115310.0,0.4169445]
[1761529878746,0.19408306,115330.0,115310.0,0.4169445]
[1761529879160,0.19408306,115330.0,115320.0,0.17343045]
[1761529881374,0.19508306,115330.0,115320.0,0.17343045]
[1761529885247,0.02166765,115330.0,115320.0,0.26324946]
[1761529887998,0.02166765,115330.0,115320.0,0.58098613]
[1761529889152,0.02166765,115330.0,115320.0,0.26324946]
[1761529889576,0.02066765,115330.0,115320.0,0.26324946]
[1761529889785,0.02066765,115330.0,115320.0,0.26724946]
[1761529896138,0.02066765,115330.0,115320.0,0.92498613]
[1761529896346,0.02066765,115330.0,115320.0,0.97116671]
[1761529897058,0.02066765,115330.0,115320.0,0.9971807]
[1761529897904,0.02066765,115330.0,115320.0,0.67944403]
[1761529898107,0.02066765,115330.0,115320.0,0.9971807]
[1761529899782,0.02066765,115330.0,115320.0,1.39355145]
[1761529904954,0.02066765,115330.0,115320.0,0.67944403]
[1761529905160,0.02066765,115330.0,115320.0,1.39355145]
[1761529907163,0.02066765,115330.0,115320.0,1.42973373]
[1761529907284,0.02066765,115330.0,115320.0,1.38355315]
[1761529907938,0.02066765,115330.0,115320.0,1.42978016]
[1761529909454,0.02066765,115330.0,115320.0,1.38355315]
[1761529910047,0.02066765,115330.0,115320.0,1.42978314]
[1761529910267,0.02066765,115330.0,115320.0,1.38355315]
[1761529913920,0.02066765,115330.0,115320.0,1.0365717]
[1761529914156,0.02066765,115330.0,115320.0,1.60158541]
[1761529914497,0.02066765,115330.0,115320.0,1.2445317]
[1761529915327,0.02066765,115330.0,115320.0,1.55533087]
[1761529915763,0.02066765,115330.0,115320.0,1.19827716]
[1761529917064,0.02066765,115330.0,115320.0,1.55533087]
[1761529917478,0.02066765,115330.0,115320.0,1.34737087]
[1761529917893,0.02066765,115330.0,115320.0,1.55533087]
[1761529918264,0.02066765,115330.0,115320.0,1.34737087]
[1761529918587,0.02066765,115330.0,115320.0,1.55533087]
[1761529919420,0.02066765,115330.0,115320.0,1.19827716]
[1761529919933,0.02066765,115330.0,115320.0,0.84122345]
[1761529920126,0.02066765,115330.0,115320.0,1.55533087]
[1761529920335,0.02066765,115330.0,115320.0,1.19827716]
[1761529920482,0.02066765,115330.0,115320.0,1.04575716]
[1761529920685,0.02066765,115330.0,115320.0,1.24458736]
[1761529920884,0.02066765,115330.0,115320.0,0.88753365]
[1761529921090,0.02066765,115330.0,115320.0,1.24458736]
[1761529922371,0.02066765,115330.0,115320.0,1.19827716]
[1761529922571,0.02066765,115330.0,115320.0,1.01062681]
[1761529922748,0.02066765,115330.0,115320.0,1.16314681]
[1761529923906,0.02066765,115330.0,115320.0,1.47387688]
[1761529924281,0.02066765,115330.0,115320.0,1.49989127]
[1761529924878,0.02066765,115330.0,115320.0,1.14283756]
[1761529925237,0.02066765,115330.0,115320.0,1.20455459]
[1761529926527,0.55113677,115330.0,115320.0,0.09381901]
[1761529926756,0.55113677,115330.0,115320.0,0.24641901]
[1761529926941,0.19408306,115330.0,115320.0,0.24641901]
[1761529927248,0.55113677,115330.0,115320.0,0.24641901]
[1761529927609,0.17343045,115320.0,115310.0,0.32604527]
[1761529927784,0.55113677,115330.0,115310.0,0.77291799]
[1761529928000,0.19508306,115330.0,115310.0,0.77291799]
[1761529928503,0.55213677,115330.0,115310.0,0.41586428]
[1761529929105,0.55213677,115330.0,115310.0,0.41686428]
[1761529929532,0.19508306,115330.0,115320.0,0.17343045]
[1761529929734,0.55213677,115330.0,115310.0,0.77391799]
[1761529929913,0.55113677,115330.0,115310.0,0.77391799]
[1761529930151,0.19408306,115330.0,115310.0,0.77391799]
[1761529930319,0.55113677,115330.0,115310.0,0.77391799]
[1761529930724,0.19408306,115330.0,115310.0,0.77391799]
[1761529931149,0.55113677,115330.0,115310.0,0.77391799]
[1761529932212,0.19408306,115330.0,115310.0,0.77391799]
[1761529932423,0.55113677,115330.0,115310.0,0.77391799]
[1761529933323,0.19408306,115330.0,115320.0,0.17343045]
[1761529933528,0.55113677,115330.0,115320.0,0.17343045]
[1761529934136,0.19408306,115330.0,115320.0,0.17343045]
[1761529934343,0.19508306,115330.0,115320.0,0.17343045]
[1761529934519,0.55213677,115330.0,115320.0,0.17343045]
[1761529935515,0.19508306,115330.0,115320.0,0.17343045]
[1761529935691,0.19508306,115330.0,115310.0,0.77291799]
[1761529936444,0.19408306,115330.0,115310.0,0.41586428]
[1761529936644,0.55113677,115330.0,115310.0,0.77291799]
[1761529937051,0.17343045,115320.0,115310.0,0.41586428]
[1761529937622,0.55113677,115330.0,115310.0,0.77291799]
[1761529937770,0.19408306,115330.0,115310.0,0.77291799]
[1761529937955,0.19408306,115330.0,115310.0,0.77391799]
[1761529938184,0.19408306,115330.0,115310.0,0.77291799]
[1761529938361,0.19408306,115330.0,115320.0,0.17343045]
[1761529938849,0.19408306,115330.0,115310.0,0.77291799]
[1761529939272,0.19408306,115330.0,115310.0,0.77391799]
[1761529940332,0.19408306,115330.0,115310.0,0.77291799]
[1761529941517,0.17343045,115320.0,115310.0,0.77391799]
[1761529941734,0.19408306,115330.0,115310.0,0.77391799]
[1761529941911,0.17343045,115320.0,115310.0,0.77391799]
[1761529942433,0.17343045,115320.0,115310.0,0.77291799]
[1761529943639,0.17343045,115320.0,115310.0,0.77391799]
[1761529943844,0.17343045,115320.0,115310.0,0.41686428]
[1761529945712,0.53048416,115320.0,115310.0,0.001]
[1761529946256,0.17343045,115320.0,115310.0,0.17444549]
[1761529946657,0.17343045,115320.0,115310.0,0.001]
[1761529947066,0.17443045,115320.0,115300.0,0.69168229]
[1761529947343,0.17344549,115310.0,115300.0,0.26327954]
[1761529947571,0.17346053,115300.0,115290.0,0.00563415]
[1761529947780,0.17346053,115300.0,115290.0,0.33166973]
[1761529948271,0.17346053,115300.0,115290.0,0.53616344]
[1761529948493,0.17344549,115310.0,115300.0,0.001]
[1761529948702,0.17346053,115300.0,115290.0,0.17910956]
[1761529948934,0.17346053,115300.0,115290.0,0.53616327]
[1761529949123,0.17344549,115310.0,115290.0,0.53616327]
[1761529949318,0.17346053,115300.0,115290.0,0.17910973]
[1761529949528,0.17346053,115300.0,115290.0,0.53616344]
[1761529950129,0.17344549,115310.0,115290.0,0.54016344]
[1761529950351,0.17346053,115300.0,115290.0,0.62998245]
[1761529951851,0.17346053,115300.0,115290.0,0.27292874]
[1761529952025,0.17346053,115300.0,115290.0,0.62998245]
[1761529954232,0.5304992,115310.0,115290.0,0.62998245]
[1761529954458,0.17344549,115310.0,115290.0,0.62998245]
[1761529954657,0.5304992,115310.0,115290.0,0.62998245]
[1761529955284,0.17346053,115300.0,115290.0,0.18310973]
[1761529955509,0.17346053,115300.0,115290.0,0.33566973]
[1761529956268,0.17346053,115300.0,115290.0,0.33166973]
[1761529956470,0.17346053,115300.0,115290.0,0.00963415]
[1761529956668,0.17346053,115300.0,115290.0,0.18310973]
[1761529956900,0.17346053,115300.0,115290.0,0.17910973]
[1761529957098,0.17346053,115300.0,115290.0,0.18010973]
[1761529958375,0.17346053,115300.0,115290.0,0.00663415]
[1761529958572,0.17346053,115300.0,115290.0,0.18010973]
[1761529960366,0.32602053,115300.0,115290.0,0.00663415]